fUSD/lending_fUSD_20240113
["ID","MTS","AMOUNT","RATE_DAILY","PERIOD"]
[311455675,1705139454776,-500.0,0.00027397,2]
[311455676,1705139454786,-500.0,0.00027397,2]
[311455677,1705139454795,-500.0,0.00027397,2]
[311455678,1705139454804,-507.92013271,0.00027397,2]
[311455679,1705139454813,-500.0,0.00027397,2]
[311455680,1705139454823,-515.19,0.00027397,2]
[311455681,1705139454832,-500.0,0.00027397,2]
[311455682,1705139454842,-644.48,0.00027397,2]
[311455683,1705139454851,-500.0,0.00027397,2]
[311455684,1705139454860,-500.0,0.00027397,2]
[311455685,1705139454869,-500.0,0.00027397,2]
[311455686,1705139454879,-500.0,0.00027397,2]
[311455687,1705139454888,-500.0,0.00027397,2]
[311455688,1705139454898,-500.0,0.00027397,2]
[311455689,1705139454907,-500.0,0.00027397,2]
[311455690,1705139454916,-830.32,0.00027397,2]
[311455691,1705139454925,-500.0,0.00027397,2]
[311455692,1705139454934,-500.0,0.00027397,2]
[311455693,1705139454943,-500.0,0.00027397,2]
[311455694,1705139454952,-1024.9,0.00027397,2]
[311455695,1705139454961,-500.0,0.00027397,2]
[311455696,1705139454970,-500.0,0.00027397,2]
[311455697,1705139454979,-1658.99,0.00027397,2]
[311455698,1705139454989,-500.0,0.00027397,2]
[311455699,1705139454998,-500.0,0.00027397,2]
[311455700,1705139455007,-500.0,0.00027397,2]
[311455701,1705139455017,-500.0,0.00027397,2]
[311455702,1705139455026,-500.0,0.00027397,2]
[311455703,1705139455035,-500.0,0.00027397,2]
[311455704,1705139455044,-500.0,0.00027397,2]
[311455705,1705139455054,-500.0,0.00027397,2]
[311455706,1705139455063,-159.28,0.00027397,2]
[311455707,1705139455072,-250.0,0.00027397,2]
[311455708,1705139455082,-156.84378542,0.00027398,2]
[311455709,1705139455091,-250.0,0.000274,2]
[311455710,1705139455100,-250.0,0.000274,2]
[311455711,1705139455109,-250.0,0.000274,2]
[311455712,1705139455119,-250.0,0.000274,2]
[311455713,1705139455128,-250.0,0.000274,2]
[311455714,1705139455137,-250.0,0.000274,2]
[311455715,1705139455147,-254.3,0.000274,2]
[311455716,1705139455157,-236.14448915,0.00027428,5]
[311455717,1705139455166,-1000.0,0.00027428,7]
[311455718,1705139455175,-225.49277624,0.00027428,7]
[311455719,1705139455185,-349.55494599,0.00027428,7]
[311455720,1705139455194,-187.43724967,0.00027428,7]
[311455721,1705139455203,-776.85385188,0.00027428,7]
[311455722,1705139455213,-263.81938512,0.00027428,7]
[311455723,1705139455222,-483.26003753,0.00027428,7]
[311455724,1705139455233,-328.84498054,0.00027428,7]
[311455725,1705139455244,-156.84378542,0.00027433,2]
[311455726,1705139455254,-156.84378542,0.00027467,2]
[311455727,1705139455265,-156.84378542,0.00027502,2]
[311455728,1705139455274,-811.02,0.00027534,2]
[311455729,1705139455283,-156.84378542,0.00027536,2]
[311455730,1705139455292,-222.63,0.00027569,2]
[311455731,1705139455301,-270.07,0.0002757,2]
[311455732,1705139455310,-2000.0,0.00027571,3]
[311455733,1705139455319,-20000.0,0.00027571,2]
[311455734,1705139455328,-156.84378542,0.00027571,2]
[311455735,1705139455337,-150.0,0.00027579,2]
[311455736,1705139455346,-150.0,0.00027579,2]
[311455737,1705139455356,-500.0,0.00027599,2]
[311455738,1705139455365,-826.0,0.00027599,5]
[311455739,1705139455374,-39919.21750406,0.000276,2]
[311455740,1705139456101,-1999.69999029,0.000276,2]
[311455741,1705139458019,-246.16,0.00023485,2]
[311455742,1705139458028,-6696.9906905,0.00027297,2]
[311455743,1705139458040,-514.59376721,0.00027297,2]
[311455744,1705139458060,-297.30280359,0.00027297,2]
[311455745,1705139458091,-7908.63853485,0.00027297,2]
[311455746,1705139458107,-4100.91622888,0.00027297,2]
[311455747,1705139458119,-349.14283934,0.00027297,2]
[311455748,1705139458133,-18956.16838406,0.00027297,2]
[311455749,1705139458157,-723.3468242,0.00027297,2]
[311455750,1705139459140,-150.0,0.00026485,2]
[311455751,1705139459149,-8596.30462737,0.00027297,2]
[311455752,1705139459159,-500.0,0.00027397,2]
[311455753,1705139459168,-500.0,0.00027397,2]
[311455754,1705139459177,-500.0,0.00027397,2]
[311455755,1705139459186,-1425.22,0.00027397,2]
[311455756,1705139459195,-500.0,0.00027397,2]
[311455757,1705139459204,-500.0,0.00027397,2]
[311455758,1705139459214,-500.0,0.00027397,2]
[311455759,1705139459223,-500.0,0.00027397,2]
[311455760,1705139459233,-500.0,0.00027397,2]
[311455761,1705139459242,-524.41,0.00027397,2]
[311455762,1705139459251,-500.0,0.00027397,2]
[311455763,1705139459261,-500.0,0.00027397,2]
[311455764,1705139459270,-33778.45523009,0.000276,2]
[311455765,1705139459279,-156.90151,0.00027666,2]
[311455766,1705139459289,-500.0,0.0002767,2]
[311455767,1705139459298,-516.77401744,0.0002767,2]
[311455768,1705139459307,-543.24673395,0.00027671,2]
[311455769,1705139459316,-500.0,0.00027671,2]
[311455770,1705139459325,-500.0,0.00027671,2]
[311455771,1705139459334,-500.0,0.00027671,2]
[311455772,1705139459343,-500.0,0.00027671,2]
[311455773,1705139459353,-500.0,0.00027671,2]
[311455774,1705139459362,-500.0,0.00027671,2]
[311455775,1705139459370,-500.0,0.00027671,2]
[311455776,1705139459380,-500.0,0.00027671,2]
[311455777,1705139459388,-500.0,0.00027671,2]
[311455778,1705139459397,-500.0,0.00027671,2]
[311455779,1705139459407,-500.0,0.00027671,2]
[311455780,1705139459417,-500.0,0.00027671,2]
[311455781,1705139459428,-500.0,0.00027671,2]
[311455782,1705139459438,-500.0,0.00027671,2]
[311455783,1705139459447,-500.0,0.00027671,2]
[311455784,1705139459457,-500.0,0.00027671,2]
[311455785,1705139459466,-500.0,0.00027671,2]
[311455786,1705139459475,-500.0,0.00027671,2]
[311455787,1705139459484,-500.0,0.00027671,2]
[311455788,1705139459495,-500.0,0.00027671,2]
[311455789,1705139459505,-500.0,0.00027671,2]
[311455790,1705139459514,-174.56660966,0.00027671,2]
[311455791,1705139459523,-500.0,0.00027671,2]
[311455792,1705139459533,-500.0,0.00027671,2]
[311455793,1705139459542,-500.0,0.00027671,2]
[311455794,1705139459551,-235.62127149,0.00027671,2]
[311455795,1705139459565,-264.37872851,0.00027671,2]
[311455796,1705139459576,-500.0,0.00027671,2]
[311455797,1705139459585,-500.0,0.00027671,2]
[311455798,1705139459594,-500.0,0.00027671,2]
[311455799,1705139459603,-500.0,0.00027671,2]
[311455800,1705139459612,-500.0,0.00027671,2]
[311455801,1705139459621,-500.0,0.00027671,2]
[311455802,1705139459630,-460.38751372,0.00027671,2]
[311455803,1705139459643,-43.78679952,0.00027671,2]
[311455804,1705139459652,-500.0,0.00027671,2]
[311455805,1705139459661,-500.0,0.00027671,2]
[311455806,1705139459672,-105.20407247,0.00027671,2]
[311455807,1705139459684,-394.79592753,0.00027671,2]
[311455808,1705139459693,-500.0,0.00027671,2]
[311455809,1705139459702,-471.12373503,0.00027671,2]
[311455810,1705139459711,-500.0,0.00027671,2]
[311455811,1705139459720,-500.0,0.00027671,2]
[311455812,1705139459730,-348.03147598,0.00027671,2]
[311455813,1705139459739,-504.1040253,0.00027671,2]
[311455814,1705139459751,-500.0,0.00027671,2]
[311455815,1705139459760,-500.0,0.00027671,2]
[311455816,1705139459769,-500.0,0.00027671,2]
[311455817,1705139459778,-500.0,0.00027671,2]
[311455818,1705139459787,-500.0,0.00027671,2]
[311455819,1705139459796,-500.0,0.00027671,2]
[311455820,1705139459805,-500.0,0.00027671,2]
[311455821,1705139459814,-552.68232504,0.00027671,2]
[311455822,1705139459823,-500.0,0.00027671,2]
[311455823,1705139459832,-500.0,0.00027671,2]
[311455824,1705139459841,-538.90628138,0.00027671,2]
[311455825,1705139459850,-500.0,0.00027671,2]
[311455826,1705139459859,-500.0,0.00027671,2]
[311455827,1705139459868,-506.51286116,0.00027671,2]
[311455828,1705139459877,-500.0,0.00027671,2]
[311455829,1705139459887,-500.0,0.00027671,2]
[311455830,1705139459895,-500.0,0.00027671,2]
[311455831,1705139459905,-500.0,0.00027671,2]
[311455832,1705139459914,-500.0,0.00027671,2]
[311455833,1705139459923,-500.0,0.00027671,2]
[311455834,1705139459931,-500.0,0.00027671,2]
[311455835,1705139459940,-500.0,0.00027671,2]
[311455836,1705139459949,-42.76180422,0.00027671,2]
[311455837,1705139459972,-500.0,0.00027397,2]
[311455838,1705139459981,-457.23819578,0.00027671,2]
[311455839,1705139459991,-500.0,0.00027671,2]
[311455840,1705139460001,-500.0,0.00027671,2]
[311455841,1705139460011,-500.0,0.00027671,2]
[311455842,1705139460020,-500.0,0.00027671,2]
[311455843,1705139460029,-511.79790087,0.00027671,2]
[311455844,1705139460039,-500.0,0.00027671,2]
[311455845,1705139460048,-500.0,0.00027671,2]
[311455846,1705139460058,-500.0,0.00027671,2]
[311455847,1705139460068,-500.0,0.00027671,2]
[311455848,1705139460078,-500.0,0.00027671,2]
[311455849,1705139460087,-500.0,0.00027671,2]
[311455850,1705139460096,-500.0,0.00027671,2]
[311455851,1705139460105,-285.23800837,0.00027671,2]
[311455852,1705139460114,-500.0,0.00027671,2]
[311455853,1705139460124,-500.0,0.00027671,2]
[311455854,1705139460133,-500.0,0.00027671,2]
[311455855,1705139460143,-500.0,0.00027671,2]
[311455856,1705139460152,-500.0,0.00027671,2]
[311455857,1705139460161,-500.0,0.00027671,2]
[311455858,1705139460171,-500.0,0.00027671,2]
[311455859,1705139460180,-500.0,0.00027671,2]
[311455860,1705139460189,-500.0,0.00027671,2]
[311455861,1705139460198,-500.0,0.00027671,2]
[311455862,1705139460207,-500.0,0.00027671,2]
[311455863,1705139460216,-500.0,0.00027671,2]
[311455864,1705139460226,-500.0,0.00027671,2]
[311455865,1705139460235,-500.0,0.00027671,2]
[311455866,1705139460245,-170.72368267,0.00027671,2]
[311455867,1705139735316,837.87271399,0.000229,6]
[311455868,1705139739424,1126.4154968,0.00022442,2]
[311455869,1705140064662,1250.0,0.00022,3]
[311455870,1705140068924,285.04,0.00022237,2]
[311455871,1705140144706,175.55,0.00020292,2]
[311455872,1705140320424,187.70348537,0.00021829,2]
[311455873,1705140321530,155.0,0.00020292,2]
[311455874,1705140339514,157.41680398,0.00020292,2]
[311455875,1705140342480,200.0,0.00022009,2]
[311455876,1705140357367,150.0,0.00022,2]
[311455877,1705140422975,156.52,0.00022151,2]
[311455878,1705140425362,151.00857465,0.00022,2]
[311455879,1705140429345,192.04,0.00022058,2]
[311455886,1705140484199,837.79,0.00021911,2]
[311455891,1705140501953,200.0,0.0002188,2]
[311455893,1705140520749,167.2,0.00021863,2]
[311455897,1705140532388,266.03,0.00021863,2]
[311455904,1705140582665,-279.07354886,0.00022513,2]
[311455905,1705140582685,-2143.50853805,0.00022514,2]
[311455906,1705140582705,-155.0,0.00022515,2]
[311455907,1705140582726,-532.38898749,0.00022515,2]
[311455908,1705140582748,-156.52,0.0002252,2]
[311455909,1705140582770,-175.55,0.00022556,2]
[311455910,1705140582791,-162.21,0.00022661,2]
[311455911,1705140582812,-156.27,0.00022698,2]
[311455912,1705140582832,-222.52871988,0.00022748,4]
[311455913,1705140582852,-155.0,0.00022748,2]
[311455914,1705140582873,-211.76474501,0.00022786,2]
[311455915,1705140582894,-3150.18546071,0.00022786,2]
[311455916,1705140609275,1136.94236544,0.0002233,2]
[311455919,1705140631779,-2139.15,0.00022786,2]
[311455920,1705140631879,-16.3927497,0.00022786,2]
[311455921,1705140631904,-818.26057678,0.00022786,2]
[311455922,1705140631916,-485.80288671,0.00022786,2]
[311455923,1705140632008,-526.7983261,0.00022786,2]
[311455924,1705140632018,-211.76474491,0.00022792,2]
[311455925,1705140632027,-211.76474491,0.00022798,2]
[311455926,1705140632037,-6012.5957,0.000228,2]
[311455927,1705140632046,-211.76474491,0.00022804,2]
[311455928,1705140632056,-211.76474491,0.0002281,2]
[311455929,1705140632065,-211.76474491,0.00022816,2]
[311455930,1705140632074,-211.76474491,0.00022822,2]
[311455931,1705140632084,-211.76474491,0.00022828,2]
[311455932,1705140632093,-211.76474491,0.00022834,2]
[311455933,1705140632102,-211.76474491,0.0002284,2]
[311455934,1705140632111,-266.03,0.00022841,2]
[311455935,1705140632121,-211.76474491,0.00022846,2]
[311455937,1705140632131,-211.76474491,0.00022852,2]
[311455938,1705140632140,-211.76474491,0.00022858,2]
[311455941,1705140632149,-211.76474491,0.00022864,2]
[311455942,1705140632159,-211.76474491,0.0002287,2]
[311455943,1705140632168,-211.76474491,0.00022876,2]
[311455944,1705140632178,-211.76474491,0.00022882,2]
[311455945,1705140632187,-185.51096088,0.00022886,2]
[311455946,1705140632196,-211.76474491,0.00022888,2]
[311455947,1705140632205,-185.51096088,0.00022888,2]
[311455948,1705140632214,-156.52,0.0002289,2]
[311455949,1705140632223,-307.66575284,0.0002289,2]
[311455950,1705140632233,-185.51096088,0.0002289,2]
[311455951,1705140632242,-185.51096088,0.00022892,2]
[311455952,1705140632251,-211.76474491,0.00022894,2]
[311455953,1705140632262,-446.378426,0.000229,3]
[311455954,1705140632271,-375.18223847,0.000229,3]
[311455955,1705140632279,-49995.64492728,0.000229,2]
[311455956,1705140632288,-1390.33,0.000229,2]
[311455957,1705140632299,-664.8384997,0.000229,2]
[311455958,1705140632308,-211.76474491,0.000229,2]
[311455959,1705140632318,-41898.32799315,0.000229,2]
[311455960,1705140632330,-396.59268188,0.000229,2]
[311455961,1705140632342,-309.95931812,0.000229,2]
[311455962,1705140632386,-2318.83644568,0.000229,2]
[311455969,1705140637783,-185.51096088,0.00022894,2]
[311455970,1705140637792,-856.67180913,0.000229,2]
[311455971,1705140637997,-997.46943782,0.000229,2]
[311455972,1705140638008,-4777.6067808,0.000229,2]
[311455973,1705140638107,-575.05356282,0.000229,2]
[311455974,1705140638183,-2604.91349069,0.000229,2]
[311455975,1705140638192,-403.53761576,0.000229,2]
[311455976,1705140638201,-4317.32079278,0.000229,2]
[311455977,1705140638211,-369.56838996,0.000229,2]
[311455978,1705140638220,-205.29749463,0.000229,4]
[311455980,1705140638230,-8561.67935622,0.000229,2]
[311455982,1705140638238,-156.84378548,0.000229,2]
[311455984,1705140638247,-156.84378542,0.000229,2]
[311455986,1705140638256,-156.84378542,0.000229,2]
[311455987,1705140638267,-4007.76184712,0.000229,2]
[311455988,1705140638275,-156.84378542,0.000229,2]
[311455989,1705140638284,-1741.08049954,0.000229,2]
[311455990,1705140638293,-156.84378542,0.000229,2]
[311455991,1705140638303,-415.50620106,0.000229,2]
[311455992,1705140638312,-435.22639774,0.000229,2]
[311455993,1705140638321,-156.84378542,0.000229,2]
[311455994,1705140638331,-156.84378542,0.000229,2]
[311455996,1705140638340,-189.60327673,0.0002297,2]
[311455998,1705140638349,-402.44417388,0.00022978,3]
[311456000,1705140638358,-165.45840668,0.00022978,2]
[311456002,1705140638368,-651.89476975,0.00022978,2]
[311456004,1705140638377,-156.46104799,0.00022978,2]
[311456006,1705140638387,-2612.76863363,0.00022978,2]
[311456009,1705140638397,-953.25024195,0.00022978,2]
[311456011,1705140638406,-220.79925735,0.00022978,2]
[311456013,1705140638415,-155.57084507,0.00022978,2]
[311456015,1705140638424,-155.83560987,0.00022978,2]
[311456017,1705140638433,-155.68913509,0.00022978,2]
[311456019,1705140638442,-220.15288729,0.00022978,2]
[311456020,1705140638451,-337.22386989,0.00022978,2]
[311456023,1705140638461,-321.26087976,0.00022978,2]
[311456025,1705140638470,-155.0,0.00022978,2]
[311456027,1705140638480,-544.63587714,0.00022978,2]
[311456028,1705140638488,-129236.66967931,0.00022978,2]
[311456030,1705140638498,-155.31068406,0.00022978,2]
[311456032,1705140638507,-238.63,0.00022978,2]
[311456035,1705140638518,-224.29677927,0.00022978,2]
[311456036,1705140638526,-155.27527606,0.00022978,2]
[311456037,1705140638535,-376.09699221,0.00022978,2]
[311456038,1705140638545,-184.98191519,0.00022978,2]
[311456039,1705140638554,-676.31437857,0.00022978,2]
[311456040,1705140638563,-7499.86846982,0.00022978,2]
[311456041,1705140638572,-4890.53780485,0.00022979,2]
[311456042,1705140638581,-3382.66570833,0.00022979,2]
[311456043,1705140638590,-304957.04419538,0.0002298,2]
[311456044,1705140638599,-41382.0,0.00022986,2]
[311456045,1705140638608,-18022.2558151,0.00022999,2]
[311456046,1705140638618,-3002.2839626,0.00022999,2]
[311456047,1705140638627,-150.0,0.00022999,2]
[311456048,1705140638636,-150.0,0.00022999,2]
[311456049,1705140638645,-150.0,0.00022999,2]
[311456050,1705140638654,-150.0,0.00022999,2]
[311456051,1705140638663,-150.0,0.00022999,2]
[311456052,1705140638672,-150.0,0.00022999,2]
[311456053,1705140638681,-150.0,0.00022999,2]
[311456054,1705140638690,-150.0,0.00022999,2]
[311456055,1705140638699,-150.0,0.00022999,2]
[311456056,1705140638708,-150.0,0.00022999,2]
[311456057,1705140638717,-150.0,0.00022999,2]
[311456058,1705140638726,-150.0,0.00022999,2]
[311456059,1705140639010,-150.0,0.00022999,2]
[311456060,1705140639019,-9005.14,0.00023,2]
[311456061,1705140639030,-6317.19711482,0.00023,2]
[311456062,1705140639039,-921289.13483069,0.00023,2]
[311456063,1705140639050,-9238115.70608567,0.00023,2]
[311456064,1705140639062,-299.03794568,0.00023,2]
[311456065,1705140639082,-517.94510522,0.00023,2]
[311456071,1705140640372,-185.51096088,0.00022896,2]
[311456072,1705140640382,-82.98733582,0.000229,2]
[311456073,1705140641056,-73.8564496,0.000229,2]
[311456074,1705140641065,-152.51301999,0.000229,2]
[311456075,1705140641074,-761.92683941,0.00023,2]
[311456076,1705140641124,-1479.28100742,0.00023,2]
[311456077,1705140641182,-868.6112336,0.00023,2]
[311456117,1705140643330,-1135.9003841,0.00022977,2]
[311456118,1705140643339,-27335.10522584,0.00023,2]
[311456119,1705140643496,-2774.55359074,0.00023,2]
[311456120,1705140643610,-10501.06760002,0.00023,2]
[311456121,1705140643622,-660.66870255,0.00023,2]
[311456122,1705140643634,-2142.2,0.00023,2]
[311456123,1705140643645,-5975.64928085,0.00023,2]
[311456128,1705140645856,-535.1875,0.00023,2]
[311456129,1705140645867,-446.712,0.00023,2]
[311456130,1705140646023,-664.62392199,0.00022999,2]
[311456131,1705140646045,-398.70000002,0.00022999,2]
[311456132,1705140646086,-1246.72607799,0.00022999,2]
[311456133,1705140646095,-18274.06224494,0.00023,2]
[311456134,1705140647225,-2823.49455801,0.00023,2]
[311456135,1705140647238,-3221.21470357,0.00023,2]
[311456140,1705140699254,171.02,0.00018894,2]
[311456145,1705140762562,171.11,0.00016712,2]
[311456246,1705140823448,300.0,0.000223,8]
[311456247,1705140825565,600.0,0.000224,8]
[311456248,1705140827663,900.0,0.000225,8]
[311456249,1705140829792,1200.0,0.000226,8]
[311456250,1705140831875,1500.0,0.000227,8]
[311456251,1705140833948,300.0,0.000228,8]
[311456252,1705140835160,1060.97081364,0.00022344,2]
[311456253,1705140836039,300.0,0.000229,8]
[311456254,1705140845867,352.26,0.00022,2]
[311456255,1705140866509,192.04,0.00022284,2]
[311456256,1705140891582,154.01,0.00022284,2]
[311456257,1705140915433,170.71981094,0.000229,6]
[311456258,1705140922777,200.0,0.00022225,2]
[311456259,1705140924853,-1000000.0,0.00037023,30]
[311456260,1705140924877,-155.0,0.00037023,120]
[311456261,1705140924900,-1452.94025032,0.00037023,60]
[311456262,1705140924923,-191.9741086,0.00037023,30]
[311456263,1705140924946,-159.33332837,0.00037023,30]
[311456264,1705140924968,-160.25208428,0.00037023,30]
[311456265,1705140924990,-160.87442723,0.00037023,60]
[311456266,1705140925019,-1677.68405705,0.00037023,120]
[311456267,1705140925044,-277.75763021,0.00037023,30]
[311456268,1705140925067,-510000.0,0.00037023,30]
[311456269,1705140925090,-546.7553204,0.00037023,120]
[311456270,1705140925114,-1199.53,0.00037023,30]
[311456271,1705140925140,-500.0,0.00037023,120]
[311456272,1705140925162,-5161.14521442,0.00037023,120]
[311456273,1705140925185,-60000.0,0.00037023,30]
[311456274,1705140925209,-100000.0,0.00037023,30]
[311456275,1705140925233,-2196.94052319,0.00037023,119]
[311456276,1705140925256,-335.70750724,0.00037023,30]
[311456277,1705140925283,-1047.3839083,0.00037023,120]
[311456278,1705140925305,-1313.4412559,0.00037023,120]
[311456279,1705140925328,-471.0248856,0.00037023,120]
[311456280,1705140925351,-1904.383291,0.00037023,30]
[311456281,1705140925374,-305.224997,0.00037023,30]
[311456282,1705140925397,-1967.760791,0.00037023,30]
[311456283,1705140927921,-506.01327902,0.00027397,30]
[311456284,1705140927959,-500.0,0.00027397,30]
[311456285,1705140928095,-500.0,0.00027671,30]
[311456286,1705140928210,-612.25094798,0.00027945,30]
[311456287,1705140928791,-551.99868821,0.0002883,30]
[311456288,1705140929004,-155.65453419,0.0003,30]
[311456289,1705140929333,-151.0,0.00032722,120]
[311456290,1705140929403,-151.0,0.00033389,30]
[311456291,1705140929458,-96008.94756386,0.000348,30]
[311456292,1705140929484,-844.36006733,0.00035,30]
[311456293,1705140929516,-243.74634693,0.0003623,30]
[311456294,1705140929540,-630000.0,0.00036923,90]
[311456295,1705140929563,-2000.0,0.00037,30]
[311456296,1705140929586,-353.75494167,0.00037,38]
[311456297,1705140929612,-800.0,0.000377,60]
[311456298,1705140929636,-12030.61996417,0.000379,30]
[311456299,1705140929659,-162.0,0.0003797,120]
[311456300,1705140929681,-162.0,0.0003797,120]
[311456301,1705140929703,-390.0,0.0003797,120]
[311456302,1705140929726,-390.0,0.0003797,120]
[311456303,1705140929748,-1143.0,0.0003797,120]
[311456304,1705140929771,-396.0,0.0003797,120]
[311456305,1705140929793,-150.5,0.0003797,120]
[311456306,1705140929816,-1143.0,0.0003797,120]
[311456307,1705140929839,-396.0,0.0003797,120]
[311456308,1705140929861,-377.0,0.0003797,120]
[311456309,1705140929883,-377.0,0.0003797,120]
[311456310,1705140929905,-162.0,0.0003798,120]
[311456311,1705140929927,-162.0,0.0003798,120]
[311456312,1705140929950,-162.0,0.0003798,120]
[311456313,1705140929972,-164.21,0.0003798,120]
[311456314,1705140929994,-390.0,0.0003798,120]
[311456315,1705140930017,-390.0,0.0003798,120]
[311456316,1705140930039,-390.0,0.0003798,120]
[311456317,1705140930061,-393.83,0.0003798,120]
[311456318,1705140930085,-1143.0,0.0003798,120]
[311456319,1705140930108,-396.0,0.0003798,120]
[311456320,1705140930134,-150.5,0.0003798,120]
[311456321,1705140930156,-1143.0,0.0003798,120]
[311456322,1705140930179,-249.49,0.0003798,120]
[311456323,1705140930201,-396.0,0.0003798,120]
[311456324,1705140930223,-1143.0,0.0003798,120]
[311456325,1705140930246,-396.0,0.0003798,120]
[311456326,1705140930268,-1148.11,0.0003798,120]
[311456327,1705140930290,-400.7,0.0003798,120]
[311456328,1705140930312,-377.0,0.0003798,120]
[311456329,1705140930333,-377.0,0.0003798,120]
[311456330,1705140930355,-377.0,0.0003798,120]
[311456331,1705140930376,-382.15,0.0003798,120]
[311456332,1705140930398,-282.16,0.0003799,120]
[311456333,1705140930420,-162.0,0.0003799,120]
[311456334,1705140930443,-162.0,0.0003799,120]
[311456335,1705140930466,-162.0,0.0003799,120]
[311456336,1705140930489,-162.0,0.0003799,120]
[311456337,1705140930511,-390.0,0.0003799,120]
[311456338,1705140930534,-390.0,0.0003799,120]
[311456339,1705140930557,-390.0,0.0003799,120]
[311456340,1705140930580,-390.0,0.0003799,120]
[311456341,1705140930602,-244.5,0.0003799,120]
[311456342,1705140930625,-1143.0,0.0003799,120]
[311456343,1705140930648,-396.0,0.0003799,120]
[311456344,1705140930672,-150.5,0.0003799,120]
[311456345,1705140930695,-1143.0,0.0003799,120]
[311456346,1705140930717,-396.0,0.0003799,120]
[311456347,1705140930739,-150.5,0.0003799,120]
[311456348,1705140930764,-1143.0,0.0003799,120]
[311456349,1705140930787,-396.0,0.0003799,120]
[311456350,1705140930810,-1143.0,0.0003799,120]
[311456351,1705140930831,-396.0,0.0003799,120]
[311456352,1705140930856,-377.0,0.0003799,120]
[311456353,1705140930879,-377.0,0.0003799,120]
[311456354,1705140930903,-377.0,0.0003799,120]
[311456355,1705140930926,-377.0,0.0003799,120]
[311456356,1705140930949,-300.0,0.00038,39]
[311456357,1705140930973,-7763.08152,0.000382,30]
[311456358,1705140930997,-5000.0,0.0003828,32]
[311456359,1705140931022,-1002.03934941,0.00038356,120]
[311456360,1705140931315,-5000.0,0.0003848,31]
[311456361,1705140931341,-5569.43027412,0.000388,30]
[311456362,1705140931367,-2885.22384137,0.00039,33]
[311456363,1705140931389,-4000.0,0.00039,30]
[311456364,1705140931414,-300.0,0.00039,40]
[311456365,1705140931436,-169.53355484,0.00039,40]
[311456366,1705140931459,-14000.0,0.00039,60]
[311456367,1705140931482,-44649.5,0.00039,30]
[311456368,1705140931506,-4966.012626,0.0003922,30]
[311456369,1705140931530,-60759.16656,0.0003922,30]
[311456370,1705140931559,-1000.0,0.00039748,30]
[311456371,1705140931585,-5549.35961127,0.000398,30]
[311456372,1705140931609,-1818.37392993,0.000398,30]
[311456373,1705140931634,-27020.10140484,0.000398,30]
[311456374,1705140931658,-6960.45560153,0.000398,30]
[311456375,1705140931683,-1027.03358826,0.000398,30]
[311456376,1705140931707,-14695.56232622,0.000398,30]
[311456377,1705140931732,-9275.85939659,0.000398,30]
[311456378,1705140931755,-1030.65104407,0.000398,30]
[311456379,1705140931779,-9032.18421569,0.000398,30]
[311456380,1705140931803,-6155.97929456,0.000398,30]
[311456381,1705140931828,-46643.55354072,0.000398,30]
[311456382,1705140931851,-11198.10691708,0.000398,30]
[311456383,1705140931875,-13230.66914092,0.000398,30]
[311456384,1705140931899,-7368.44528407,0.000398,30]
[311456385,1705140931922,-818.71614267,0.000398,30]
[311456386,1705140931945,-12692.94222897,0.000398,30]